bitfinex-derivatives/quotes_SOLF0:USTF0_20240925
["timestamp","ask_amount","ask_price","bid_price","bid_amount"]
[1727286971400,0.87206145,149.69,149.67,3.3408]
[1727286972097,11.15206145,149.69,149.63,2.7649]
[1727286972300,11.15206145,149.69,149.32,44.84314805]
[1727286972301,10.28,149.64,149.48,89.22778887]
[1727286972502,10.28,149.59,149.55,2.6265]
[1727286972804,3.343,149.58,149.55,12.9065]
[1727286972999,3.343,149.58,149.55,11.6364]
[1727286973391,13.6136676,149.59,149.55,11.6364]
[1727286973392,3.3336676,149.59,149.55,11.6364]
[1727286973593,10.28,149.57,149.55,1.3564]
[1727286973896,10.28,149.57,149.52,90.52]
[1727286973897,3.3433,149.56,149.52,90.52]
[1727286974298,10.28,149.57,149.52,93.8641]
[1727286974895,10.28,149.56,149.52,93.8641]
[1727286976096,13.6234,149.56,149.52,93.8641]
[1727286976301,13.57565217,149.57,149.53,3.3437]
[1727286976502,10.28,149.57,149.53,3.3437]
[1727286976807,13.6232,149.57,149.53,3.3437]
[1727286977008,3.38351398,149.57,149.54,3.3437]
[1727286977505,3.38351398,149.57,149.54,10.28]
[1727286977702,3.38351398,149.57,149.54,13.6235]
[1727286978409,3.38351398,149.57,149.52,80.24]
[1727286978410,3.3426,149.6,149.55,10.28]
[1727286978709,0.98042738,149.59,149.55,10.28]
[1727286978907,0.98042738,149.59,149.56,3.3432]
[1727286979204,0.98042738,149.59,149.57,10.28]
[1727286979406,10.28,149.61,149.58,3.3428]
[1727286979711,0.98052128,149.6,149.57,10.28]
[1727286980007,0.98052128,149.6,149.57,13.623]
[1727286980208,0.98053215,149.59,149.57,13.623]
[1727286980404,0.98053215,149.59,149.5,1.4012]
[1727286980405,4.24830925,149.59,149.55,13.6233]
[1727286980611,4.24830925,149.59,149.5,1.4012]
[1727286980612,10.28,149.57,149.53,10.28]
[1727286981098,10.28,149.57,149.54,10.28]
[1727286981298,5.98062886,149.67,149.54,10.28]
[1727286981299,13.6227,149.59,149.54,10.28]
[1727286981505,0.98047327,149.58,149.55,13.6233]
[1727286981709,17.02761002,149.59,149.55,13.6233]
[1727286983302,3.3428,149.58,149.55,13.6233]
[1727286983506,3.3428,149.58,149.55,3.3433]
[1727286983712,10.28,149.58,149.54,3.3436]
[1727286983901,13.6229,149.58,149.54,3.3436]
[1727286985013,17.02761002,149.59,149.54,10.28]
[1727286985209,13.6227,149.59,149.54,10.28]
[1727286985411,3.3427,149.59,149.56,13.6232]
[1727286985812,3.3425,149.6,149.56,10.28]
[1727286986713,3.3425,149.6,149.54,16.06]
[1727286987012,3.3425,149.6,149.57,3.343]
[1727286987516,3.3422,149.61,149.57,3.343]
[1727286987718,3.3422,149.61,149.58,3.3428]
[1727286987919,16.06,149.63,149.54,16.06]
[1727286988113,3.3425,149.6,149.54,16.06]
[1727286988308,16.06,149.63,149.54,16.06]
[1727286988513,16.06,149.63,149.55,1.3397]
[1727286988713,3.3422,149.61,149.57,3.3429]
[1727286988910,3.3422,149.61,149.55,1.3397]
[1727286988911,16.06,149.63,149.55,1.3397]
[1727286990116,16.06,149.61,149.52,16.06]
[1727286990819,16.06,149.59,149.51,1.3397]
[1727286991119,16.06,149.57,149.51,1.3397]
[1727286991616,3.32195902,149.56,149.51,1.3397]
[1727286991918,16.06,149.59,149.51,1.3397]
[1727286992115,19.4014732,149.59,149.51,1.3397]
[1727286992316,3.343,149.58,149.51,1.3397]
[1727286992516,19.4014732,149.59,149.51,1.3397]
[1727286993012,16.06,149.58,149.51,1.3397]
[1727286993617,3.3434,149.56,149.51,1.3397]
[1727286994122,3.3434,149.56,149.53,3.3438]
[1727286994840,3.3434,149.56,149.51,1.3397]
[1727286994841,3.35050511,149.58,149.51,1.3397]
[1727286995122,16.06,149.6,149.51,1.3397]
[1727286995323,3.3429,149.58,149.55,3.3433]
[1727286995523,3.26775615,149.59,149.52,16.06]
[1727286995725,3.3427,149.59,149.56,3.3431]
[1727286996029,17.3865,149.64,149.54,16.06]
[1727286996218,3.3423,149.61,149.54,16.06]
[1727286996525,17.3865,149.64,149.54,16.06]
[1727286996826,3.3423,149.61,149.57,3.3429]
[1727286997016,16.06,149.62,149.54,16.06]
[1727286997513,16.06,149.62,149.56,3.3431]
[1727286997718,16.06,149.62,149.54,16.06]
[1727286997919,3.3425,149.6,149.54,16.06]
[1727286998126,16.06,149.63,149.54,16.06]
[1727286998331,16.06,149.63,149.56,16.06]
[1727286998722,16.06,149.63,149.59,3.3425]
[1727286998723,3.342,149.62,149.59,3.3425]
[1727287004338,3.3422,149.61,149.58,3.3427]
[1727287006425,3.342,149.62,149.59,3.3426]
[1727287008233,3.3418,149.63,149.6,3.3423]
[1727287008432,3.3418,149.63,149.58,10.28]
[1727287008433,10.28,149.63,149.58,10.28]
[1727287010134,13.6217,149.63,149.6,3.3422]
[1727287010337,10.28,149.63,149.58,10.28]
[1727287010530,10.28,149.62,149.57,11.6158]
[1727287010841,13.6219,149.62,149.59,3.3425]
[1727287013537,13.6218,149.63,149.6,3.3424]
[1727287020237,10.28,149.61,149.57,1.3358]
[1727287020540,13.01486706,149.66,149.56,10.28]
[1727287020735,13.6223,149.61,149.57,3.3429]
[1727287021041,13.6223,149.61,149.56,10.28]
[1727287021533,10.28,149.61,149.58,3.3426]
[1727287021933,10.28,149.62,149.57,10.28]
[1727287022234,13.6219,149.62,149.59,3.3425]
[1727287023032,3.3422,149.61,149.58,3.3427]
[1727287023440,10.28,149.59,149.53,1.2735]
[1727287023646,17.04700931,149.59,149.54,10.28]
[1727287024145,17.04700931,149.59,149.56,3.3431]
[1727287024339,3.42430931,149.59,149.56,10.28]
[1727287024642,10.28,149.61,149.56,10.28]
[1727287024831,13.6223,149.61,149.58,3.3428]
[1727287025035,13.6223,149.61,149.56,10.28]
[1727287025036,13.00733197,149.66,149.56,10.28]
[1727287025236,10.28,149.62,149.56,10.28]
[1727287025438,10.28,149.62,149.59,3.3425]
[1727287026540,13.00733197,149.66,149.6,3.3424]
[1727287026736,10.28,149.63,149.6,3.3424]
[1727287027135,10.28,149.63,149.58,10.28]
[1727287027136,13.6219,149.63,149.59,3.3425]
[1727287028439,3.342,149.62,149.59,3.3425]
[1727287029946,13.6222,149.61,149.58,3.3427]
[1727287031043,10.28,149.61,149.58,3.3427]
[1727287031345,10.28,149.61,149.59,3.3426]
[1727287031541,13.00984355,149.66,149.58,10.28]
[1727287031839,10.28,149.63,149.59,10.28]
[1727287032334,13.6216,149.64,149.59,10.28]
[1727287032539,13.6216,149.64,149.6,3.3423]
[1727287032843,13.6216,149.64,149.6,10.28]
[1727287033037,10.28,149.64,149.6,10.28]
[1727287033241,3.3414,149.65,149.6,10.28]
[1727287033437,13.0141646,149.66,149.62,10.28]
[1727287033644,13.0141646,149.66,149.55,1.3051]
[1727287033645,3.30792886,149.67,149.63,10.28]
[1727287034251,3.30792886,149.67,149.64,3.3414]
[1727287034643,0.76989997,149.68,149.64,10.28]
[1727287034845,4.13421924,149.68,149.65,3.3412]
[1727287035148,11.04989997,149.68,149.63,10.28]
[1727287035645,3.31516363,149.67,149.64,3.3414]
[1727287035840,3.31516363,149.67,149.63,10.28]
[1727287036140,10.28,149.67,149.62,10.28]
[1727287036347,3.36933516,149.66,149.62,3.3418]
[1727287036551,10.28,149.65,149.62,3.3418]
[1727287037838,10.28,149.64,149.61,3.3421]
[1727287038444,10.28,149.63,149.57,1.2852]
[1727287038641,10.28,149.62,149.57,1.2852]
[1727287038947,10.28,149.62,149.57,11.5652]
[1727287039153,3.3418,149.63,149.58,10.28]
[1727287039454,13.6216,149.64,149.6,3.3422]
[1727287039653,3.2835112,149.63,149.62,10.28]
[1727287040248,3.3409,149.67,149.62,10.28]
[1727287040444,3.3409,149.67,149.64,10.28]
[1727287040645,0.76989997,149.68,149.65,10.28]
[1727287041346,0.76989997,149.68,149.66,3.3409]
[1727287041748,0.76989997,149.68,149.59,1.3626]
[1727287042045,11.04989997,149.68,149.59,1.3626]
[1727287042249,11.04989997,149.68,149.63,10.28]
[1727287042450,3.341,149.67,149.64,3.3413]
[1727287042655,0.76989997,149.68,149.6,16.05]
[1727287042958,0.76989997,149.68,149.59,17.4126]
[1727287043251,0.97891249,149.67,149.59,17.4126]
[1727287043447,0.76989997,149.68,149.59,17.4126]
[1727287043649,4.31989387,149.67,149.63,3.3415]
[1727287043847,3.341,149.67,149.63,3.3415]
[1727287044348,3.341,149.67,149.64,3.3414]
[1727287044751,4.11069997,149.68,149.61,16.05]
[1727287044955,4.11069997,149.68,149.64,3.3413]
[1727287045261,4.11069997,149.68,149.61,16.05]
[1727287045551,0.97872497,149.67,149.59,1.3626]
[1727287045761,16.05,149.64,149.57,1.2852]
[1727287045951,19.44119997,149.68,149.59,3.3426]
[1727287046152,0.97861406,149.67,149.59,3.3426]
[1727287046358,16.05,149.65,149.57,1.2852]
[1727287046655,16.05,149.65,149.59,3.3424]
[1727287046852,16.05,149.65,149.57,1.2852]
[1727287047058,16.05,149.65,149.59,3.3425]
[1727287047059,3.3416,149.64,149.59,3.3425]
[1727287047554,3.3416,149.64,149.6,3.3423]
[1727287050260,13.01238961,149.65,149.61,3.3421]
[1727287050261,16.35368961,149.65,149.61,3.3421]
[1727287051266,3.3413,149.65,149.61,3.3421]
[1727287051465,3.3415,149.64,149.6,3.3423]
[1727287053865,16.05,149.64,149.58,1.3411]
[1727287054462,3.342,149.62,149.59,3.3426]
[1727287054862,3.3418,149.63,149.59,3.3426]
[1727287055479,3.3419,149.62,149.59,3.3426]
[1727287055872,3.3419,149.62,149.58,4.6838]
[1727287056273,3.3419,149.62,149.58,1.3411]
[1727287056563,3.3418,149.63,149.59,3.3425]
[1727287057070,3.3419,149.62,149.59,3.3425]
[1727287057965,3.27837602,149.61,149.59,3.3425]
[1727287058669,6.62057602,149.61,149.58,3.3427]
[1727287062358,16.90057602,149.61,149.58,3.3427]
[1727287062561,10.28,149.6,149.57,3.3429]
[1727287062964,3.3427,149.59,149.55,11.5851]
[1727287063371,3.3427,149.59,149.57,3.343]
[1727287064472,16.99674749,149.6,149.55,11.5851]
[1727287065072,13.65424749,149.6,149.58,3.3427]
[1727287065477,13.65424749,149.6,149.55,1.3051]
[1727287065663,16.99674749,149.6,149.55,11.5851]
[1727287065864,16.99674749,149.6,149.56,10.28]
[1727287066265,6.71674749,149.6,149.56,10.28]
[1727287066469,13.6222,149.61,149.58,10.28]
[1727287067177,10.28,149.61,149.59,3.3425]
[1727287067579,3.342,149.62,149.59,3.3424]
[1727287069166,13.622,149.62,149.59,3.3424]
[1727287070372,13.00327363,149.66,149.58,10.28]
[1727287070572,10.28,149.66,149.6,10.28]
[1727287070977,13.6211,149.66,149.6,10.28]
[1727287071976,3.3413,149.65,149.6,10.28]
[1727287072175,3.3413,149.65,149.61,3.342]
[1727287073277,13.6213,149.65,149.61,3.342]
[1727287073980,3.3413,149.65,149.62,3.3419]
[1727287074175,13.6213,149.65,149.62,3.3419]
[1727287075278,10.28,149.65,149.63,3.3417]
[1727287075482,10.28,149.65,149.6,10.28]
[1727287076081,13.6213,149.65,149.61,3.3419]
[1727287076579,13.6213,149.65,149.6,10.28]
[1727287076974,3.3411,149.66,149.62,10.28]
[1727287077182,0.76989997,149.68,149.64,10.28]
[1727287080276,0.76989997,149.68,149.65,3.3411]
[1727287080786,0.76989997,149.68,149.64,10.28]
[1727287080980,0.76989997,149.68,149.66,3.341]
[1727287081488,4.11049997,149.68,149.66,3.341]
[1727287081685,4.11049997,149.68,149.65,3.3411]
[1727287082192,10.28,149.67,149.58,80.26]
[1727287082384,10.28,149.67,149.61,10.28]
[1727287082580,10.28,149.65,149.61,10.28]
[1727287082781,10.28,149.64,149.6,3.3423]
[1727287083192,3.3417,149.63,149.6,3.3423]
[1727287083889,3.3417,149.63,149.61,3.3421]
[1727287084091,3.3417,149.63,149.59,10.28]
[1727287084590,3.3417,149.63,149.61,3.3421]
[1727287084792,3.3417,149.63,149.59,10.28]
[1727287084990,3.3417,149.63,149.58,80.26]
[1727287085185,3.3417,149.63,149.6,3.3423]
[1727287085581,10.28,149.61,149.58,93.8827]
[1727287085791,10.28,149.61,149.58,90.54]
[1727287085988,10.28,149.61,149.58,10.28]
[1727287086289,10.28,149.61,149.59,3.3425]
[1727287089591,13.6218,149.63,149.59,3.3425]
[1727287090292,2.6846,149.67,149.59,3.3425]
[1727287090293,10.28,149.61,149.59,3.3425]
[1727287091296,10.28,149.6,149.58,3.3427]
[1727287091499,10.28,149.6,149.57,10.28]
[1727287091691,10.28,149.6,149.55,11.5851]
[1727287091895,13.6224,149.6,149.57,3.3429]
[1727287092089,10.28,149.6,149.57,3.3429]
[1727287092498,3.3428,149.59,149.55,11.5851]
[1727287092696,3.31382516,149.61,149.55,11.5851]
[1727287092902,10.28,149.6,149.55,11.5851]
[1727287093405,3.29230769,149.61,149.56,10.28]
[1727287093890,6.63450769,149.61,149.58,3.3427]
[1727287095102,3.3424,149.6,149.57,3.3429]
[1727287096801,16.91460769,149.61,149.57,3.3429]
[1727287098702,16.91460769,149.61,149.58,3.3427]
[1727287099004,13.57230769,149.61,149.58,3.3427]
[1727287099801,3.29230769,149.61,149.58,3.3427]
[1727287100002,10.28,149.62,149.57,10.28]
[1727287100207,10.28,149.62,149.58,10.28]
[1727287100705,10.28,149.62,149.6,3.3422]
[1727287101599,13.6219,149.62,149.6,3.3422]
[1727287102209,10.28,149.62,149.6,3.3422]
[1727287102798,10.28,149.61,149.59,3.3425]
[1727287103915,2.6846,149.67,149.58,3.3427]
[1727287104099,10.28,149.6,149.58,3.3427]
[1727287105710,3.3423,149.61,149.58,3.3427]
[1727287105919,13.622,149.62,149.57,10.28]
[1727287107010,13.622,149.62,149.59,3.3425]
[1727287108513,10.28,149.6,149.58,3.3428]
[1727287109110,13.6224,149.6,149.57,3.3429]
[1727287109308,3.39498829,149.61,149.56,10.28]
[1727287109509,13.622,149.62,149.59,3.3425]
[1727287109711,13.622,149.62,149.57,10.28]
[1727287110114,13.622,149.62,149.58,3.3427]
[1727287110305,13.622,149.62,149.57,10.28]
[1727287111113,13.622,149.62,149.59,3.3425]
[1727287112017,10.28,149.64,149.59,10.28]
[1727287112719,13.6216,149.64,149.61,3.342]
[1727287113911,10.28,149.65,149.62,3.3419]
[1727287114910,13.6213,149.65,149.62,3.3419]
[1727287115218,10.28,149.65,149.62,3.3419]
[1727287115617,10.28,149.65,149.63,3.3416]
[1727287117222,3.3412,149.66,149.62,3.3418]
[1727287117518,10.28,149.65,149.62,3.3418]
[1727287118819,13.6212,149.66,149.62,3.3418]
[1727287120515,3.3413,149.65,149.62,3.3418]
[1727287121819,10.28,149.63,149.61,3.342]
[1727287122018,10.28,149.63,149.59,10.28]
[1727287122214,13.6217,149.63,149.6,3.3423]
[1727287122616,10.28,149.63,149.6,3.3423]
[1727287122919,10.28,149.63,149.61,3.3421]
[1727287124516,13.6217,149.63,149.6,3.3423]
[1727287125011,10.28,149.63,149.6,3.3423]
[1727287125419,13.6216,149.64,149.61,3.342]
[1727287126219,10.28,149.64,149.62,3.3419]
[1727287126415,13.0218422,149.67,149.6,10.28]
[1727287126623,10.28,149.66,149.6,10.28]
[1727287126825,13.6211,149.66,149.63,3.3416]
[1727287127615,13.6214,149.65,149.62,3.3419]
[1727287128423,13.6214,149.65,149.61,3.342]
[1727287129024,13.6215,149.64,149.61,3.342]
[1727287130931,10.28,149.64,149.59,10.28]
[1727287131630,13.6215,149.64,149.6,3.3423]
[1727287131830,13.6215,149.64,149.59,10.28]
[1727287132935,3.3415,149.64,149.61,3.3421]
[1727287133130,0.76989997,149.68,149.61,10.28]
[1727287133440,10.28,149.66,149.62,3.3417]
[1727287133627,13.6215,149.64,149.59,10.28]
[1727287134723,13.6213,149.65,149.62,3.3418]
[1727287136635,3.3415,149.64,149.61,3.3421]
[1727287138437,13.6214,149.65,149.61,3.3421]
[1727287138633,10.28,149.65,149.61,3.3421]
[1727287139934,3.3415,149.64,149.61,3.3421]
[1727287141339,13.6215,149.64,149.61,3.3421]
[1727287143341,3.3413,149.65,149.62,3.3419]
[1727287143537,10.28,149.67,149.62,10.28]
[1727287144338,3.3412,149.66,149.63,3.3416]
[1727287145842,3.3412,149.66,149.62,13.6218]
[1727287148842,3.3412,149.66,149.63,3.3417]
[1727287149840,13.6213,149.65,149.62,3.3418]
[1727287152546,13.6213,149.65,149.62,13.6218]
[1727287152945,3.3411,149.66,149.62,13.6218]
[1727287153246,3.3411,149.66,149.63,3.3417]
[1727287153645,3.3411,149.66,149.62,3.3418]
[1727287154247,3.3412,149.65,149.62,3.3418]
[1727287154944,3.3411,149.66,149.62,3.3418]
[1727287158052,10.28,149.66,149.62,3.3418]
[1727287158452,10.28,149.66,149.61,10.28]
[1727287158648,10.28,149.66,149.58,1.3367]
[1727287158846,3.3414,149.65,149.61,10.28]
[1727287159254,3.3414,149.65,149.62,3.3419]
[1727287159447,10.28,149.66,149.62,3.3419]
[1727287159448,13.6211,149.66,149.62,3.3419]
[1727287163146,3.3413,149.65,149.62,3.3419]
[1727287164750,10.28,149.65,149.58,1.3367]
[1727287164953,10.28,149.62,149.58,10.28]
[1727287165446,10.28,149.62,149.59,3.3424]
[1727287166855,3.3423,149.61,149.58,3.3428]
[1727287174556,3.3423,149.61,149.57,10.28]
[1727287174755,3.3423,149.61,149.59,3.3426]
[1727287179463,3.342,149.62,149.6,3.3424]
[1727287179859,3.3418,149.63,149.61,3.3421]
[1727287180358,13.04848977,149.65,149.61,10.28]
[1727287180565,3.341,149.66,149.63,3.3415]
[1727287186171,3.341,149.66,149.62,3.3418]
[1727287188679,13.621,149.66,149.62,3.3418]
[1727287190063,3.341,149.66,149.63,3.3416]
[1727287190264,13.621,149.66,149.63,3.3416]
[1727287190964,10.28,149.66,149.63,3.3416]
[1727287193272,13.621,149.66,149.63,3.3416]
[1727287194570,10.28,149.64,149.57,1.3825]
[1727287194777,10.28,149.58,149.55,1.3051]
[1727287195171,10.28,149.58,149.56,3.3431]
[1727287195568,10.28,149.58,149.55,1.3051]
[1727287195771,10.28,149.56,149.51,80.26]
[1727287195976,10.28,149.53,149.51,80.26]
[1727287196572,10.28,149.53,149.52,3.344]
[1727287196972,16.93107535,149.55,149.52,3.344]
[1727287198874,3.30757535,149.55,149.51,80.26]
[1727287199180,10.28,149.57,149.52,10.28]
[1727287199374,13.61087989,149.57,149.52,10.28]
[1727287199575,16.95407989,149.57,149.52,10.28]
[1727287199976,13.61087989,149.57,149.55,3.3435]
[1727287200479,13.61087989,149.57,149.56,3.3433]
[1727287200679,3.33087989,149.57,149.54,10.28]
[1727287201076,10.28,149.59,149.54,10.28]
[1727287201270,10.28,149.58,149.55,3.3434]
[1727287201474,10.28,149.56,149.52,10.28]
[1727287201769,13.623,149.58,149.53,10.28]
[1727287201969,10.28,149.6,149.55,10.28]
[1727287202175,23.89229363,149.65,149.57,10.28]
[1727287202371,3.3419,149.63,149.58,3.3426]
[1727287202570,10.28,149.62,149.58,3.3426]
[1727287202877,3.26286211,149.61,149.58,3.3426]
[1727287203078,10.28,149.59,149.54,10.28]
[1727287203783,10.28,149.56,149.49,1.282]
[1727287203988,10.28,149.55,149.49,1.282]
[1727287204285,10.28,149.55,149.53,3.3439]
[1727287204784,10.28,149.56,149.54,3.3437]
[1727287204988,13.67432662,149.56,149.54,3.3437]
[1727287205173,3.3431,149.57,149.53,10.28]
[1727287205377,13.6231,149.57,149.54,3.3437]
[1727287205573,16.97817921,149.57,149.54,3.3437]
[1727287206180,10.28,149.55,149.53,3.3439]
[1727287206685,10.28,149.59,149.56,3.3431]
[1727287206886,3.2961947,149.58,149.56,3.3431]
[1727287207082,3.2961947,149.58,149.55,3.3434]
[1727287207276,10.28,149.57,149.53,10.28]
[1727287207677,12.17591757,149.64,149.55,10.28]
[1727287207879,10.28,149.61,149.57,10.28]
[1727287208181,3.31158497,149.6,149.57,10.28]
[1727287208479,10.28,149.59,149.54,10.28]
[1727287208790,10.28,149.56,149.49,1.282]
[1727287209080,10.28,149.55,149.53,3.3437]
[1727287209279,10.28,149.55,149.48,81.6146]
[1727287209280,10.28,149.54,149.43,6.6922]
[1727287209487,10.28,149.5,149.46,10.28]
[1727287209686,1.3086,149.64,149.49,3.3448]
[1727287209687,23.85719717,149.61,149.49,3.3448]
[1727287209894,10.28,149.51,149.49,3.3448]
[1727287210686,2.2226,149.6,149.5,10.28]
[1727287210881,10.28,149.57,149.52,10.28]
[1727287211089,10.28,149.57,149.54,3.3436]
[1727287211285,10.28,149.57,149.45,6.6914]
[1727287211286,3.40413433,149.61,149.55,10.28]
[1727287211487,10.28,149.6,149.55,10.28]
[1727287211689,10.28,149.58,149.44,1.3715]
[1727287211887,17.03963914,149.58,149.53,10.28]
[1727287212290,17.03963914,149.58,149.54,3.3436]
[1727287212688,13.6231,149.57,149.49,2.6844]
[1727287212896,13.6231,149.57,149.53,3.3438]
[1727287213089,13.6231,149.57,149.52,10.28]
[1727287213487,0.9318,149.65,149.56,10.28]
[1727287213693,10.28,149.61,149.56,10.28]
[1727287213887,3.3428,149.58,149.54,13.6236]
[1727287214093,10.28,149.59,149.54,10.28]
[1727287214496,13.61177226,149.59,149.54,10.28]
[1727287215098,16.95457226,149.59,149.55,3.3433]
[1727287215292,13.61177226,149.59,149.55,10.28]
[1727287215898,13.61177226,149.59,149.56,3.3431]
[1727287216301,16.95437226,149.59,149.56,3.3431]
[1727287216491,13.61177226,149.59,149.54,10.28]
[1727287216694,10.28,149.57,149.53,10.28]
[1727287217195,10.28,149.56,149.52,10.28]
[1727287217393,3.29173936,149.57,149.49,93.2644]
[1727287217394,10.28,149.54,149.49,93.2644]
[1727287217789,10.28,149.53,149.49,93.2644]
[1727287218193,10.28,149.55,149.5,10.28]
[1727287218399,13.5779743,149.56,149.53,3.3438]
[1727287218596,13.5779743,149.56,149.52,10.28]
[1727287218902,13.5779743,149.56,149.53,3.3439]
[1727287219095,10.28,149.56,149.53,3.3439]
[1727287220298,10.28,149.54,149.49,12.9644]
[1727287221398,13.6238,149.54,149.51,3.3442]
[1727287221602,10.28,149.54,149.51,3.3442]
[1727287221802,3.38965906,149.57,149.51,10.28]
[1727287221803,10.28,149.56,149.51,10.28]
[1727287222103,13.6234,149.56,149.53,3.3439]
[1727287222803,10.28,149.57,149.54,3.3436]
[1727287224799,3.3429,149.58,149.54,3.3436]
[1727287225004,3.343,149.57,149.54,3.3436]
[1727287225404,16.07,149.58,149.5,1.3183]
[1727287225605,16.07,149.56,149.49,2.6844]
[1727287225911,16.07,149.56,149.51,3.3443]
[1727287226204,3.3436,149.55,149.51,3.3443]
[1727287226705,0.9326,149.59,149.45,1.2848]
[1727287226706,3.3443,149.52,149.45,1.2848]
[1727287226898,16.07,149.51,149.45,1.2848]
[1727287227400,3.38585976,149.51,149.45,1.2848]
[1727287227595,16.07,149.53,149.45,1.2848]
[1727287227796,3.3443,149.52,149.49,3.3448]
[1727287228003,6.60767851,149.52,149.49,3.3448]
[1727287231609,3.3445,149.51,149.48,3.345]
[1727287232213,3.3447,149.5,149.47,3.3452]
[1727287232702,16.07,149.51,149.44,89.25315779]
[1727287232908,3.26337851,149.52,149.44,89.25315779]
[1727287233116,16.07,149.49,149.44,89.25315779]
[1727287233317,3.39792503,149.49,149.44,89.25315779]
[1727287233610,16.07,149.47,149.4,1.3909]
[1727287233809,22.79491807,149.47,149.43,3.346]
[1727287234011,3.37951807,149.47,149.41,16.07]
[1727287234207,16.07,149.5,149.41,16.07]
[1727287234412,3.3449,149.49,149.45,3.3456]
[1727287234611,6.62097419,149.49,149.45,3.3456]
[1727287235113,3.27607419,149.49,149.41,16.07]
[1727287235410,0.9321,149.56,149.45,16.07]
[1727287235618,16.07,149.55,149.46,1.3503]
[1727287235809,16.07,149.53,149.46,1.3503]
[1727287236216,3.3442,149.52,149.46,1.3503]
[1727287236515,3.28812843,149.51,149.46,1.3503]
[1727287236715,16.07,149.55,149.46,1.3503]
[1727287237309,3.3438,149.54,149.5,3.3446]
[1727287238008,22.78008098,149.55,149.51,3.3443]
[1727287238313,19.43648098,149.55,149.51,3.3443]
[1727287239015,3.3437,149.54,149.5,3.3445]
[1727287242919,16.07,149.53,149.46,1.3503]
[1727287243528,19.3809103,149.53,149.46,1.3503]
[1727287243716,22.7249103,149.53,149.49,3.3447]
[1727287244106,19.3809103,149.53,149.49,3.3447]
[1727287244719,3.3443,149.52,149.48,3.345]
[1727287244908,3.3443,149.52,149.46,1.3503]
[1727287245313,3.3443,149.52,149.48,3.3449]
[1727287246120,3.3443,149.52,149.49,3.3448]
[1727287249018,19.3809103,149.53,149.49,3.3448]
[1727287249222,3.3109103,149.53,149.5,3.3445]
[1727287249414,16.07,149.57,149.48,16.07]
[1727287249720,19.44483544,149.57,149.48,16.07]
[1727287250025,3.3434,149.56,149.48,16.07]
[1727287250227,3.3434,149.56,149.48,17.4113]
[1727287250725,3.3434,149.56,149.52,3.344]
[1727287251721,6.71793544,149.57,149.53,3.3437]
[1727287252836,3.3433,149.56,149.53,3.3437]
[1727287253337,3.37483544,149.57,149.53,3.3437]
[1727287253539,3.3431,149.57,149.53,3.3437]
[1727287253733,6.69918743,149.57,149.53,3.3437]
[1727287253940,3.3431,149.57,149.53,3.3437]
[1727287254140,3.3433,149.56,149.53,3.3437]
[1727287254331,3.32195432,149.56,149.52,3.3441]
[1727287254538,16.07,149.57,149.52,3.3441]
[1727287254841,3.3434,149.56,149.52,3.3441]